Cogmind - Beta 13 @@@ ROGUE MODE // 2024.06.28 @ 12:50:52 Player: Mr.Morel Result: Destroyed by G-47 Trooper with Particle Gun Performance ------------- Evolutions (0) 0 Regions Visited (2) 400 Robots Destroyed (17) 85 Value Destroyed (279) 279 Prototype IDs (0) 0 Alien Tech Used (0) 0 Bonus (0) 0 TOTAL SCORE: 764 Bonus ------- None Cogmind --------- Core Integrity 0/250 Matter 300/300 Energy 100/100 System Corruption 1% Temperature Cool (9) Movement Walking (120) Location -10/Mines Parts ------- > --- POWER (1) -------- (None) > --- PROPULSION (2) --- Aluminum Leg (fused) > --- UTILITY (2) ------ Small Storage Unit > --- WEAPON (2) ------- Hammer > --- INVENTORY (8) ---- Aluminum Leg Aluminum Leg Signal Interpreter Plasma Flamer Peak State ------------ > --- POWER ------------ Light Nuclear Core > --- PROPULSION ------- Aluminum Leg Aluminum Leg > --- UTILITY ---------- Small Storage Unit > --- WEAPON ----------- Light Assault Rifle Hammer > --- INVENTORY -------- Aluminum Leg Aluminum Leg Signal Interpreter [Rating: 8] Favorites ----------- Power Ion Engine Engine Ion Engine Power Core Light Nuclear Core Propulsion Aluminum Leg Treads Light Treads Leg Aluminum Leg Utility Small Storage Unit Device Heat Sink Storage Small Storage Unit Weapon Light Assault Rifle Energy Gun EM Pulse Gun Ballistic Gun Light Assault Rifle Launcher Grenade Launcher Impact Weapon Hammer Build | -11 -10 -10 ------- Run | Yrd Mat Min Slots Evolved . | . . . Power . | . . . Propulsion . | . . . Utility . | . . . Weapon . | . . . Parts Attached 17 | 8 8 1 Power 2 | 1 1 . Engine 1 | 1 . . Core 1 | . 1 . Reactor . | . . . Propulsion 7 | 4 3 . Treads 2 | 2 . . Leg 5 | 2 3 . Wheel . | . . . Hover . | . . . Flight . | . . . Utility 2 | 1 1 . Device 1 | . 1 . Storage 1 | 1 . . Processor . | . . . Hackware . | . . . Protection . | . . . Artifact . | . . . Weapon 6 | 2 3 1 Energy Gun 2 | 1 1 . Energy Cannon . | . . . Ballistic Gun 2 | 1 . 1 Ballistic Cannon . | . . . Launcher 1 | . 1 . Special Weapon . | . . . Impact Weapon 1 | . 1 . Slashing Weapon . | . . . Piercing Weapon . | . . . Special Melee Weapon . | . . . Unidentified Prototypes . | . . . Parts Lost 6 | . 3 3 Power 1 | . . 1 Propulsion 1 | . . 1 Utility 1 | . 1 . Weapon 3 | . 2 1 Highest Loss Streak 3 | . 2 3 To Critical Strikes . | . . . Average Slot Usage (%) 84 | . 88 78 Engine 7 | . 11 . Core 6 | . 2 13 Leg 27 | . 28 27 Device 4 | . 7 . Storage 14 | . 14 14 Energy Gun 2 | . 4 . Ballistic Gun 8 | . 7 9 Launcher 2 | . 4 . Impact Weapon 9 | . 6 14 Naked Turns . | . . . Heaviest Build 16 | 13 16 13 Greatest Support 40 | 40 20 20 Greatest Overweight (x) 1 | 1 . . Average Overweight (x) . | . . . Largest Inventory Capacity 8 | 8 8 8 Average Capacity 7 | 7 8 8 Most Carried 6 | 2 6 4 Average Carried 2 | . 2 3 Final Capacity 8 | 8 8 8 Final Carried 4 | . 4 4 Class Distribution -------------------- 100% | Mutant Dominant Class ---------------- Mutant | -10/Materials Mutant | -10/Mines Resources | -11 -10 -10 ----------- Run | Yrd Mat Min Matter Collected 447 | 244 184 19 Remotely . | . . . Salvage Created 523 | . 424 99 Parts 18 | . 16 2 Haulers Intercepted . | . . . Recyclers Shooed 2 | . 2 . Parts Field Recycled . | . . . Retrieved Matter . | . . . Parts Self-Destructed . | . . . Prevented . | . . . Kills | -11 -10 -10 ------- Run | Yrd Mat Min Combat Hostiles Destroyed 11 | . 11 . Melee 1 | . 1 . Guns 9 | . 9 . AOE 1 | . 1 . Classes Destroyed 6 | . 5 1 Worker 2 | . 2 . Builder 1 | . 1 . Tunneler 1 | . . 1 Recycler 2 | . 1 1 Swarmer 6 | . 6 . Grunt 5 | . 5 . Best Kill Streak 11 | . 11 1 Combat Bots Only 7 | . 7 . Max Kills in Single Turn 2 | . 2 1 Gunslinging . | . . . Exploded 1 | . 1 . Melee 1 | . 1 . Uniques/NPCs Destroyed . | . . . Combat | -11 -10 -10 -------- Run | Yrd Mat Min Hostile Shots Fired 81 | . 54 27 Missed 22 | . 17 5 Damage Taken 944 | . 659 285 Core 254 | . 157 97 Absorbed by Shields . | . . . Core Remaining (%) 100 | 100 . . Volleys Fired 48 | . 42 6 Largest 2 | . 2 1 Hottest 60 | . 60 20 Shots Fired 61 | . 54 7 Gun 57 | . 50 7 Cannon . | . . . Launcher 4 | . 4 . Special . | . . . Kinetic 46 | . 39 7 Thermal . | . . . Explosive 4 | . 4 . Electromagnetic 11 | . 11 . Robot Hit Streak 11 | . 11 1 Robot Miss Streak 4 | . 4 3 Penetration Max . | . . . Secondary Targets 2 | . 2 . Max Gunslinging Chain 1 | . 1 . Shots Hit Robots 40 | . 34 6 Core Hits 23 | . 22 1 Critical Kills 1 | . . 1 Critical Parts Destroyed 1 | . . 1 Critical Strikes 2 | . . 2 Destroy 1 | . . 1 Smash 1 | . . 1 Melee Attacks 12 | . 5 7 Impact 12 | . 5 7 Slashing . | . . . Piercing . | . . . Sneak Attacks 1 | . . 1 Combat Hostiles . | . . . Follow-up Attacks . | . . . Damage Inflicted 966 | . 753 213 Guns 276 | . 247 29 Cannons . | . . . Explosions 355 | . 355 . Melee 335 | . 151 184 Ramming . | . . . Kinetic 208 | . 179 29 Thermal . | . . . Explosive 355 | . 355 . Electromagnetic 68 | . 68 . Impact 335 | . 151 184 Slashing . | . . . Piercing . | . . . Highest Corruption 1 | . 1 1 Average Corruption 1 | . 1 1 Corruption Purged . | . . . Corruption Blocked . | . . . Effects 5 | . 1 4 Matter Fused 1 | . 1 . Heat Flow Errors 2 | . . 2 Parts Fused 1 | . . 1 Misfires 1 | . . 1 Overload Shots . | . . . Overflow Damage 96 | . 41 55 Projectiles . | . . . Explosions 10 | . 10 . Melee 86 | . 31 55 Knockbacks 1 | . . 1 Impact 1 | . . 1 Kinetic . | . . . Secondary . | . . . Self-Inflicted Damage . | . . . Shots . | . . . Rammed . | . . . Targets Rammed . | . . . Kicked . | . . . Crushed . | . . . Highest Temperature 234 | . . 234 Average Temperature 114 | . . 114 Received Heat Transfer 222 | . 63 159 Siege Activations . | . . . Robots Corrupted . | . . . Combat Hostiles . | . . . Parts Fried 1 | . . 1 Impact Corruptions 5 | . 2 3 Robots Melted . | . . . Combat Hostiles . | . . . Parts Melted . | . . . Heat Transferred . | . . . Parts Sabotaged . | . . . Parts Stolen . | . . . Parts Stripped . | . . . Power Chain Reactions . | . . . Alert | -11 -10 -10 ------- Run | Yrd Mat Min Peak Influence 351 | . 351 78 Initial 68 | . . 68 Average 112 | . 172 71 Maximum Alert Level 1 | . 1 . Low Security (%) 76 | 100 55 100 Level 1 23 | . 44 . Level 2 . | . . . Level 3 . | . . . Level 4 . | . . . Level 5 . | . . . High Security . | . . . Max Security . | . . . Squads Dispatched 3 | . 3 . Investigation . | . . . Extermination . | . . . Reinforcement 3 | . 3 . Assault . | . . . Garrison . | . . . Intercept . | . . . Searches Triggered . | . . . Construction Impeded . | . . . Haulers Reinforced . | . . . Active Scanning Responses . | . . . Cargo Convoy Interrupts . | . . . Stealth | -11 -10 -10 --------- Run | Yrd Mat Min Distress Signals 1 | . 1 . Communications Jammed . | . . . Distress Signals . | . . . Times Spotted 24 | . 20 4 Peak Tracking Total 5 | . 5 2 Tactical Retreats 2 | . 2 . Traps | -11 -10 -10 ------- Run | Yrd Mat Min Traps Triggered . | . . . Indirectly . | . . . Trap Hack Attempts . | . . . Triggered . | . . . Disarmed . | . . . Reprogrammed . | . . . Reused . | . . . Traps Extracted . | . . . Installed . | . . . Triggered . | . . . Machines | -11 -10 -10 ---------- Run | Yrd Mat Min Machines Disabled 1 | . 1 . Max in Single Turn 1 | . 1 . Machines Repaired . | . . . Machines Dismantled . | . . . Machines Sabotaged . | . . . Overloaded Fab Kills . | . . . Hacking | -11 -10 -10 --------- Run | Yrd Mat Min Machines Accessed 1 | . 1 . Terminals 1 | . 1 . Fabricators . | . . . Repair Stations . | . . . Recycling Units . | . . . Scanalyzers . | . . . Garrison Access . | . . . Total Hacks 1 | . 1 . Successful 1 | . 1 . Failed . | . . . Catastrophic . | . . . Database Lockouts . | . . . Manual . | . . . Terminals 1 | . 1 . Fabricators . | . . . Repair Stations . | . . . Recycling Units . | . . . Scanalyzers . | . . . Garrison Access . | . . . Terminal Hacks 1 | . 1 . Maintenance Status 1 | . 1 . Fabricator Hacks . | . . . Repair Station Hacks . | . . . Recycling Unit Hacks . | . . . Scanalyzer . | . . . Garrison Access Hacks . | . . . Unauthorized Hacks . | . . . Terminals . | . . . Fabricators . | . . . Repair Stations . | . . . Recycling Units . | . . . Scanalyzers . | . . . Garrison Access . | . . . Data Cores Recovered . | . . . Used . | . . . Hacking Detections . | . . . Full Trace Events . | . . . Feedback Events . | . . . Feedback Blocked . | . . . Robot Schematics Acquired . | . . . Robots Built . | . . . Authchips . | . . . Time . | . . . Total Robot Build Rating . | . . . Part Schematics Acquired . | . . . Parts Built . | . . . Authchips . | . . . Time . | . . . Total Part Build Rating . | . . . Parts Repaired . | . . . Time . | . . . Parts Recycled . | . . . Recycled Matter . | . . . Retrieved Matter . | . . . Retrieved Components . | . . . Parts Scanalyzed . | . . . Part Schematics Acquired . | . . . Parts Damaged . | . . . Bothacking | -11 -10 -10 ------------ Run | Yrd Mat Min Used RIF Installer . | . . . Robots Hacked . | . . . Non-combat . | . . . Combat . | . . . Robot Hacks Applied . | . . . Relay Couplers Released . | . . . Fabnet Peak Effective % . | . . . Robots Rewired . | . . . Allies Hacked . | . . . Hacks Repelled . | . . . Allies | -11 -10 -10 -------- Run | Yrd Mat Min Total Allies . | . . . Largest Group . | . . . Highest-Rated Group . | . . . Highest-Rated Ally . | . . . Total Orders . | . . . Ally Attacks . | . . . Total Damage . | . . . Kills . | . . . Allies Corrupted . | . . . Allies Melted . | . . . Intel | -11 -10 -10 ------- Run | Yrd Mat Min Robot Analysis Total . | . . . Derelict Logs Recovered . | . . . Drone Launches . | . . . Drone Recoveries . | . . . Exploration | -11 -10 -10 ------------- Run | Yrd Mat Min Turns Passed 912 | 152 477 283 Spaces Moved 587 | 93 292 202 Core 3 | 3 . . Treads 64 | 64 . . Legs 520 | 26 292 202 Wheels . | . . . Hover . | . . . Flight . | . . . Fastest Speed 50 | 50 120 120 Average Speed 124 | 149 120 120 Slowest Speed 190 | 190 120 120 Overloaded Moves . | . . . Propulsion Burnouts . | . . . Robots Hopped . | . . . Cave-ins Triggered 1 | . 1 . Exploration Rate (%) 37 | 5 50 58 Regions Visited 2 Branch Regions 1 Pre-discovered Areas . | . . . Known Exits Taken . | . . . Unknown Exits Taken 2 | 1 1 . Scrap Searched 1 | . . 1 Spaces Dug . | . . . Terrain Destroyed 32 | . 32 . Melee . | . . . Projectile . | . . . AOE 32 | . 32 . Terrain Rammed . | . . . Walls Destroyed . | . . . Machines Disabled . | . . . Actions | -11 -10 -10 --------- Run | Yrd Mat Min Total 693 | 104 363 226 Wait 12 | . 3 9 Move 585 | 92 291 202 Hop . | . . . Pick Up 10 | . 9 1 Fast Attach 9 | 8 1 . Attach 3 | . 2 1 Detach 3 | 2 1 . Swap 5 | . 5 . Drop 6 | 2 4 . Fire 48 | . 42 6 Melee 12 | . 5 7 Ram . | . . . Kick . | . . . Crush . | . . . Escape Stasis . | . . . Rewire . | . . . Trap . | . . . Miscellaneous . | . . . Route ------- -11/Scrapyard -10/Materials (discovered 2 exits: [*Mat] / [*Min]) -10/Mines (discovered 1 exit: [*Mat]) History --------- Turn | Location | Event 8 | -11/Scrapyard | Discovered new exit (range 15) 153 | -11/Scrapyard | Entered Materials 317 | -10/Materials | Build established: Mutant 345 | -10/Materials | Destroyed 7 combat bots 521 | -10/Materials | Crushed by falling debris 521 | -10/Materials | Core integrity fell below 50% 563 | -10/Materials | Discovered new exit (range 8) 601 | -10/Materials | Discovered new exit (range 13) 630 | -10/Materials | Entered Mines 635 | -10/Mines | Met a Derelict bent on vengeance 818 | -10/Mines | A weapon hastily lodged in a ceiling crevice suddenly fell to the ground 870 | -10/Mines | Discovered new exit (range 10) 906 | -10/Mines | Core integrity fell below 20% 913 | -10/Mines | Destroyed by G-47 Trooper with Particle Gun Last Messages --------------- Destroyed Lgt. Ion Engine. Destroyed Com. Wheel. Destroyed Tractor Beam. R-06 Scavenger system corrupted by crushing effect. R-06 Scavenger system terminally corrupted. Sml. Storage Unit fried. Acquired 1 matter. K-01 Serf cleans the Plasma Injector. T-07 Excavator is excavating. K-01 Serf cleans the Plasma Injector. EXIT=FOUND K-01 Serf collects debris. System corrupted: Heat flow error (+117). K-01 Serf collects debris. Core Extractor disabled. Aluminum Leg destroyed. G-34 Mercenary knocked back. Lgt. Assault Rifle destroyed. Lgt. Nuclear Core destroyed. Map ----- +----------------------------------------------------+ | ???????????????????????????????????? | | ???????????????????????????????????? | | ######## ####??????????????????????? | | ???????????????????? | | % ???????????????????? | | ############???????????????????????? | | #??????????????????????????????????? | | #????####??????????????????????????? | | ??### #??????????????????????????? | | ## ???????????????????????????? | | # ##??????????????????????? | | ??? #??????????????????????? | | #?????? ???????????????????????? | | #????? #???????????????????????? | | ###?? #???????????????????????? | | ### #???????????????????????? | | #???????????????????????? | | #??????????????????????????? | | ###??????????????????????????? | | ##????????????????????????????? | | #?????####????????????????????? | | # ##????## ##???????????????????? | | # #????## ##??????????????????? | | # ##??## #?????#########????? | | # #### #?????# g #????? | | # ####### @ g #????? | | ## < "" #????? | | ?## #### ###### """ #????? | | ??####??## ##????# """ #????? | | ?????????## ##?????# #????? | | ??????????## ##??????#T#######????? | | ???????????####???????##???????????? | | ???????????????????????????????????? | | ???????????????????????????????????? | | ???????????????????????????????????? | | | | | | | | | | | | | | | | | | | | | | | | | | | | | | | +----------------------------------------------------+ Best States ------------- Heat Dissipation 35 Energy Generation 14 Energy Capacity 250 Matter Stores 300 Matter Capacity 300 Sight Range 16 Terrain Scan Density 10 Evasion (%) 55 Recoil Reduction 2 Item Schematics ----------------- None Robot Schematics ------------------ None Fabricated ------------ Nothing Alien Tech Used ----------------- None Achievements -------------- None Challenges ------------ None Game ------ Seed InsulatedBladePropulsion Manual? 0 Play Time 00:16:15 Cumulative 11.3 hours Start 2024.06.27 @ 11:20:32 End 2024.06.28 @ 12:50:52 Sessions 3 Manual Loads 0 Difficulty Rogue Special Mode None Game No. 28 Rogue 28 Adventurer 0 Explorer 0 Win Type - Total 0 Types 0/0/0/0/0/0/0/0/0 Lore% 12 Gallery% 18 Achievement% 14 Wizard Run 0 Options --------- Layout 2 ASCII 0 Keyboard 0 Movement Mouse Keybinds 0 Fullscreen 1 Font 24/CogTall Map View 50x44 Zoom Use 0% Tactical HUD 0 Map Filters NONE Filters LOW_CONTRAST(47,30,31) Steam 1 RUN: c6ca5cc1-df2a-47e3-a544-23d3f50dac8c